lending/lending_fUSD_20240219
["ID","MTS","AMOUNT","RATE_DAILY","PERIOD"]
[314499409,1708377111976,-500.0,0.00048493,30]
[314499410,1708377111986,-500.0,0.00048493,30]
[314499411,1708377111995,-500.0,0.00048493,30]
[314499412,1708377112005,-500.0,0.00048493,30]
[314499413,1708377112015,-500.0,0.00048493,30]
[314499414,1708377112024,-500.0,0.00048493,30]
[314499415,1708377112043,-567.74,0.00048493,30]
[314499416,1708377112056,-777.32,0.00048493,2]
[314499417,1708377112066,-500.0,0.00048493,30]
[314499418,1708377112077,-500.0,0.00048493,30]
[314499419,1708377112087,-603.14,0.00048493,30]
[314499420,1708377112096,-500.0,0.00048493,30]
[314499421,1708377112106,-500.0,0.00048493,30]
[314499422,1708377112116,-500.0,0.00048493,30]
[314499423,1708377112129,-500.0,0.00048493,30]
[314499424,1708377112139,-500.0,0.00048493,2]
[314499425,1708377112153,-500.0,0.00048493,2]
[314499426,1708377112163,-500.0,0.00048493,30]
[314499427,1708377112173,-500.0,0.00048493,30]
[314499428,1708377112183,-500.0,0.00048493,30]
[314499429,1708377112193,-500.0,0.00048493,30]
[314499430,1708377112203,-750.4,0.00048493,30]
[314499431,1708377112213,-599.04,0.00048493,30]
[314499432,1708377112223,-500.0,0.00048493,30]
[314499433,1708377112233,-500.0,0.00048493,30]
[314499434,1708377112243,-500.0,0.00048493,30]
[314499435,1708377112253,-500.0,0.00048493,30]
[314499436,1708377112262,-500.0,0.00048493,30]
[314499437,1708377112272,-500.0,0.00048493,30]
[314499438,1708377112282,-500.0,0.00048493,30]
[314499439,1708377112291,-500.0,0.00048493,30]
[314499440,1708377112301,-500.0,0.00048493,30]
[314499441,1708377112311,-690.28,0.00048493,30]
[314499442,1708377112321,-500.0,0.00048493,30]
[314499443,1708377112330,-784.44,0.00048493,30]
[314499444,1708377112341,-500.0,0.00048493,30]
[314499445,1708377112351,-500.0,0.00048493,30]
[314499446,1708377112361,-500.0,0.00048493,30]
[314499447,1708377112370,-533.46,0.00048493,30]
[314499448,1708377112380,-500.0,0.00048493,30]
[314499449,1708377112390,-712.44,0.00048493,30]
[314499450,1708377112400,-568.95,0.00048493,30]
[314499451,1708377112409,-543.64,0.00048493,30]
[314499452,1708377112419,-500.0,0.00048493,30]
[314499453,1708377112429,-500.0,0.00048493,30]
[314499454,1708377112439,-513.43,0.00048493,30]
[314499455,1708377112449,-1175.74,0.00048493,30]
[314499456,1708377112460,-500.0,0.00048493,30]
[314499457,1708377112471,-500.0,0.00048493,30]
[314499458,1708377112481,-500.0,0.00048493,30]
[314499459,1708377112492,-500.0,0.00048493,30]
[314499460,1708377112502,-500.0,0.00048493,30]
[314499461,1708377112512,-500.0,0.00048493,30]
[314499462,1708377112522,-500.0,0.00048493,30]
[314499463,1708377112532,-500.0,0.00048493,30]
[314499464,1708377112542,-500.0,0.00048493,30]
[314499465,1708377112552,-500.0,0.00048493,30]
[314499466,1708377112677,-500.0,0.00048493,30]
[314499467,1708377112688,-500.0,0.00048493,30]
[314499468,1708377112697,-523.21,0.00048493,30]
[314499469,1708377112707,-521.63,0.00048493,30]
[314499470,1708377112716,-500.0,0.00048493,30]
[314499471,1708377112726,-500.0,0.00048493,30]
[314499472,1708377112735,-500.0,0.00048493,30]
[314499473,1708377112745,-500.0,0.00048493,30]
[314499474,1708377112755,-513.88,0.00048493,30]
[314499475,1708377112764,-500.0,0.00048493,30]
[314499476,1708377112774,-500.0,0.00048493,30]
[314499477,1708377112783,-500.0,0.00048493,30]
[314499478,1708377112792,-500.0,0.00048493,30]
[314499479,1708377112802,-660.98,0.00048493,30]
[314499480,1708377112812,-500.0,0.00048493,30]
[314499481,1708377112821,-500.0,0.00048493,30]
[314499482,1708377112829,-500.0,0.00048493,30]
[314499483,1708377112839,-500.0,0.00048493,30]
[314499484,1708377112848,-588.08,0.00048493,30]
[314499485,1708377112858,-571.16492781,0.00048493,30]
[314499486,1708377112867,-500.0,0.00048493,30]
[314499487,1708377112877,-500.0,0.00048493,30]
[314499488,1708377112886,-500.0,0.00048493,30]
[314499489,1708377112895,-500.0,0.00048493,30]
[314499490,1708377112905,-500.0,0.00048493,30]
[314499491,1708377112914,-611.78,0.00048493,30]
[314499492,1708377112923,-597.62,0.00048493,30]
[314499493,1708377112933,-555.82,0.00048493,30]
[314499494,1708377112942,-500.0,0.00048493,30]
[314499495,1708377112951,-500.0,0.00048493,30]
[314499496,1708377112960,-500.0,0.00048493,30]
[314499497,1708377112970,-500.0,0.00048493,30]
[314499498,1708377112979,-918.19,0.00048493,30]
[314499499,1708377112989,-500.0,0.00048493,30]
[314499500,1708377112998,-500.0,0.00048493,30]
[314499501,1708377113008,-578.31,0.00048493,30]
[314499502,1708377113017,-500.0,0.00048493,30]
[314499503,1708377113026,-500.0,0.00048493,30]
[314499504,1708377113035,-608.33889347,0.00048493,30]
[314499505,1708377113044,-500.0,0.00048493,30]
[314499506,1708377113053,-500.0,0.00048493,30]
[314499507,1708377113063,-527.96,0.00048493,30]
[314499508,1708377113073,-500.0,0.00048493,30]
[314499509,1708377113082,-445.47146584,0.00048493,30]
[314499510,1708377113092,-500.0,0.00048493,30]
[314499511,1708377113101,-500.0,0.00048493,30]
[314499512,1708377113110,-500.0,0.00048493,30]
[314499513,1708377113119,-500.0,0.00048493,30]
[314499514,1708377113129,-500.0,0.00048493,30]
[314499515,1708377113138,-500.0,0.00048493,30]
[314499516,1708377113147,-500.0,0.00048493,30]
[314499517,1708377113156,-553.98,0.00048493,30]
[314499518,1708377113165,-500.0,0.00048493,30]
[314499519,1708377113174,-500.0,0.00048493,30]
[314499520,1708377113183,-500.0,0.00048493,30]
[314499521,1708377113193,-529.69,0.00048493,30]
[314499522,1708377113202,-500.0,0.00048493,30]
[314499523,1708377113211,-500.0,0.00048493,30]
[314499524,1708377113220,-500.0,0.00048493,30]
[314499525,1708377113229,-500.0,0.00048493,30]
[314499526,1708377113238,-556.74,0.00048493,30]
[314499527,1708377113247,-500.0,0.00048493,30]
[314499528,1708377113257,-692.58,0.00048493,30]
[314499529,1708377113266,-500.0,0.00048493,30]
[314499530,1708377113275,-552.5,0.00048493,30]
[314499531,1708377113284,-500.0,0.00048493,30]
[314499532,1708377113293,-500.0,0.00048493,30]
[314499533,1708377113302,-500.0,0.00048493,30]
[314499534,1708377113312,-500.0,0.00048493,30]
[314499535,1708377113321,-500.0,0.00048493,30]
[314499536,1708377113330,-591.77,0.00048493,30]
[314499537,1708377113339,-500.0,0.00048493,30]
[314499538,1708377113349,-500.0,0.00048493,30]
[314499539,1708377113358,-664.26,0.00048493,30]
[314499540,1708377113367,-500.0,0.00048493,30]
[314499541,1708377113376,-500.0,0.00048493,30]
[314499542,1708377113385,-500.0,0.00048493,30]
[314499543,1708377113394,-500.0,0.00048493,30]
[314499544,1708377113403,-646.62,0.00048493,30]
[314499545,1708377113413,-635.19,0.00048493,30]
[314499546,1708377113421,-500.0,0.00048493,30]
[314499547,1708377113430,-528.36225825,0.00048493,30]
[314499548,1708377113440,-514.25,0.00048493,30]
[314499549,1708377113449,-500.0,0.00048493,30]
[314499550,1708377113460,-667.9,0.00048493,30]
[314499551,1708377113471,-538.23,0.00048493,30]
[314499552,1708377113481,-500.0,0.00048493,30]
[314499553,1708377113492,-500.0,0.00048493,30]
[314499554,1708377113503,-516.68,0.00048493,30]
[314499555,1708377113513,-274.6493096,0.00048493,30]
[314499556,1708377113523,-615.42,0.00048493,30]
[314499557,1708377113532,-500.0,0.00048493,30]
[314499558,1708377113544,-500.0,0.00048493,30]
[314499559,1708377113554,-500.0,0.00048493,30]
[314499560,1708377113563,-500.0,0.00048493,30]
[314499561,1708377113572,-500.0,0.00048493,30]
[314499562,1708377113581,-617.0,0.00048493,30]
[314499563,1708377113591,-544.62,0.00048493,30]
[314499564,1708377113600,-500.0,0.00048493,30]
[314499565,1708377113610,-500.0,0.00048493,30]
[314499566,1708377113619,-500.0,0.00048493,30]
[314499567,1708377113628,-500.0,0.00048493,30]
[314499568,1708377113638,-500.0,0.00048493,30]
[314499569,1708377113646,-500.0,0.00048493,30]
[314499570,1708377113656,-500.0,0.00048493,30]
[314499571,1708377113665,-1052.96,0.00048493,30]
[314499572,1708377113675,-553.52,0.00048493,30]
[314499573,1708377113684,-213.00595786,0.00048493,30]
[314499574,1708377113693,-500.0,0.00048493,30]
[314499575,1708377113702,-500.0,0.00048493,30]
[314499576,1708377113712,-566.64,0.00048493,30]
[314499577,1708377113721,-500.0,0.00048493,30]
[314499578,1708377113731,-500.0,0.00048493,30]
[314499579,1708377113741,-500.0,0.00048493,30]
[314499580,1708377113751,-500.0,0.00048493,30]
[314499581,1708377113760,-157.92473713,0.00048493,30]
[314499582,1708377113769,-500.0,0.00048493,30]
[314499583,1708377113778,-519.09,0.00048493,30]
[314499584,1708377113788,-772.36,0.00048493,30]
[314499585,1708377113798,-500.0,0.00048493,30]
[314499586,1708377113808,-500.0,0.00048493,30]
[314499587,1708377113818,-500.0,0.00048493,30]
[314499588,1708377113827,-558.08,0.00048493,30]
[314499589,1708377113837,-500.0,0.00048493,30]
[314499590,1708377113846,-767.53,0.00048493,30]
[314499591,1708377113855,-677.61,0.00048493,30]
[314499592,1708377113865,-500.0,0.00048493,30]
[314499593,1708377113875,-521.79,0.00048493,30]
[314499594,1708377113884,-500.0,0.00048493,30]
[314499595,1708377113894,-594.14,0.00048493,30]
[314499596,1708377113903,-500.0,0.00048493,30]
[314499597,1708377113914,-781.41,0.00048493,30]
[314499598,1708377113923,-500.0,0.00048493,30]
[314499599,1708377113933,-745.38,0.00048493,30]
[314499600,1708377113943,-500.0,0.00048493,30]
[314499601,1708377113952,-500.0,0.00048493,30]
[314499602,1708377113962,-500.0,0.00048493,30]
[314499603,1708377113972,-500.0,0.00048493,30]
[314499604,1708377113983,-230.11,0.00048493,30]
[314499605,1708377113993,-500.0,0.00048493,30]
[314499606,1708377114005,-500.0,0.00048493,30]
[314499607,1708377114014,-500.0,0.00048493,30]
[314499608,1708377114024,-1082.3,0.00048493,30]
[314499609,1708377114033,-500.0,0.00048493,30]
[314499610,1708377114043,-627.94,0.00048493,30]
[314499611,1708377114052,-500.0,0.00048493,30]
[314499612,1708377114063,-505.9,0.00048493,30]
[314499613,1708377114073,-500.0,0.00048493,30]
[314499614,1708377114082,-529.79,0.00048493,30]
[314499615,1708377114091,-500.0,0.00048493,30]
[314499616,1708377114101,-536.14,0.00048493,30]
[314499617,1708377114110,-500.0,0.00048493,30]
[314499618,1708377114119,-3104.74,0.00048493,30]
[314499619,1708377114129,-523.82,0.00048493,30]
[314499620,1708377114138,-557.18,0.00048493,30]
[314499621,1708377114147,-1017.28,0.00048493,30]
[314499622,1708377114157,-500.0,0.00048493,30]
[314499623,1708377114166,-2181.83,0.00048493,30]
[314499624,1708377114175,-804.05,0.00048493,30]
[314499625,1708377114184,-500.0,0.00048493,30]
[314499626,1708377114193,-837.03,0.00048493,30]
[314499627,1708377114203,-500.0,0.00048493,30]
[314499628,1708377114212,-1389.72,0.00048493,30]
[314499629,1708377114221,-654.5,0.00048493,30]
[314499630,1708377114230,-500.0,0.00048493,30]
[314499631,1708377114240,-771.23,0.00048493,30]
[314499632,1708377114249,-500.44,0.00048493,30]
[314499633,1708377114258,-500.0,0.00048493,30]
[314499634,1708377114267,-500.0,0.00048493,30]
[314499635,1708377114277,-604.81,0.00048493,30]
[314499636,1708377114287,-500.0,0.00048493,30]
[314499637,1708377114296,-1426.77,0.00048493,30]
[314499638,1708377114306,-527.43,0.00048493,30]
[314499639,1708377114318,-500.0,0.00048493,30]
[314499640,1708377114327,-1745.38,0.00048493,30]
[314499641,1708377114337,-1075.7,0.00048493,30]
[314499642,1708377114346,-1268.71,0.00048493,30]
[314499643,1708377114355,-500.0,0.00048493,30]
[314499644,1708377114365,-886.05,0.00048493,30]
[314499645,1708377114374,-500.0,0.00048493,30]
[314499646,1708377114384,-500.0,0.00048493,30]
[314499647,1708377114393,-899.22,0.00048493,30]
[314499648,1708377114403,-2678.83,0.00048493,30]
[314499649,1708377114412,-2702.11,0.00048493,30]
[314499650,1708377114421,-1833.32,0.00048493,30]
[314499651,1708377114431,-10950.38,0.00048493,30]
[314499652,1708377114440,-500.0,0.00048493,30]
[314499653,1708377114450,-741.32,0.00048493,30]
[314499654,1708377114460,-3140.24,0.00048493,30]
[314499655,1708377114471,-500.0,0.00048493,30]
[314499656,1708377114480,-500.0,0.00048493,30]
[314499657,1708377114490,-1835.49,0.00048493,30]
[314499658,1708377114501,-503.56,0.00048493,30]
[314499659,1708377114510,-694.62,0.00048493,30]
[314499660,1708377114518,-500.0,0.00048493,30]
[314499661,1708377114528,-2331.98,0.00048493,30]
[314499662,1708377114538,-20395.47,0.00048493,30]
[314499663,1708377114548,-599.22,0.00048493,30]
[314499664,1708377114558,-1530.72,0.00048493,30]
[314499665,1708377114570,-789.92,0.00048493,30]
[314499666,1708377114579,-780.99,0.00048493,30]
[314499667,1708377114588,-500.0,0.00048493,30]
[314499668,1708377114598,-2037.65,0.00048493,30]
[314499669,1708377114607,-500.0,0.00048493,30]
[314499670,1708377114617,-500.0,0.00048493,30]
[314499671,1708377114626,-796.83,0.00048493,30]
[314499672,1708377114636,-500.0,0.00048493,30]
[314499673,1708377114645,-562.3,0.00048493,30]
[314499674,1708377114655,-1380.27,0.00048493,30]
[314499675,1708377114665,-3662.65,0.00048493,30]
[314499676,1708377114675,-1316.81,0.00048493,30]
[314499677,1708377114685,-677.42,0.00048493,30]
[314499678,1708377114695,-515.48,0.00048493,30]
[314499679,1708377114705,-500.0,0.00048493,30]
[314499680,1708377114714,-500.0,0.00048493,30]
[314499681,1708377114724,-1284.51,0.00048493,30]
[314499682,1708377114734,-375.82051429,0.00048493,30]
[314499683,1708377114744,-679.93,0.00048493,30]
[314499684,1708377114754,-500.0,0.00048493,30]
[314499685,1708377114764,-500.0,0.00048493,30]
[314499686,1708377114774,-768.65,0.00048493,30]
[314499687,1708377114783,-500.0,0.00048493,30]
[314499688,1708377114793,-2893.51,0.00048493,30]
[314499689,1708377114803,-500.0,0.00048493,30]
[314499690,1708377114813,-500.0,0.00048493,30]
[314499691,1708377114823,-5456.49,0.00048493,30]
[314499692,1708377114833,-500.0,0.00048493,30]
[314499693,1708377114843,-500.0,0.00048493,30]
[314499694,1708377114853,-2571.27,0.00048493,30]
[314499695,1708377114862,-826.56,0.00048493,30]
[314499696,1708377114872,-500.0,0.00048493,30]
[314499697,1708377114882,-1599.05,0.00048493,30]
[314499698,1708377114892,-500.0,0.00048493,30]
[314499699,1708377114902,-500.0,0.00048493,30]
[314499700,1708377114912,-721.27,0.00048493,30]
[314499701,1708377114922,-500.0,0.00048493,30]
[314499702,1708377114932,-561.40559299,0.00048493,30]
[314499703,1708377114942,-2039.63,0.00048493,30]
[314499704,1708377114952,-2095.21,0.00048493,30]
[314499705,1708377114962,-727.3,0.00048493,30]
[314499706,1708377114973,-500.0,0.00048493,30]
[314499707,1708377114984,-500.0,0.00048493,30]
[314499708,1708377114994,-500.0,0.00048493,30]
[314499709,1708377115004,-846.21,0.00048493,30]
[314499710,1708377115014,-1638.65,0.00048493,30]
[314499711,1708377115025,-1395.59,0.00048493,30]
[314499712,1708377115035,-586.56,0.00048493,30]
[314499713,1708377115046,-1364.92,0.00048493,30]
[314499714,1708377115056,-1945.02,0.00048493,30]
[314499715,1708377115068,-628.31,0.00048493,30]
[314499716,1708377115078,-500.0,0.00048493,30]
[314499717,1708377115088,-500.0,0.00048493,30]
[314499718,1708377115098,-2020.6,0.00048493,30]
[314499719,1708377115108,-500.0,0.00048493,30]
[314499720,1708377115118,-500.0,0.00048493,30]
[314499721,1708377115128,-500.0,0.00048493,30]
[314499722,1708377115138,-2298.57,0.00048493,30]
[314499723,1708377115149,-457.7,0.00048493,30]
[314499724,1708377115158,-500.0,0.00048493,30]
[314499725,1708377115169,-500.0,0.00048493,30]
[314499726,1708377115179,-1046.88,0.00048493,30]
[314499727,1708377115189,-1430.94,0.00048493,30]
[314499728,1708377115199,-500.0,0.00048493,30]
[314499729,1708377115209,-990.31,0.00048493,30]
[314499730,1708377115219,-500.0,0.00048493,30]
[314499731,1708377115228,-941.5,0.00048493,30]
[314499732,1708377115238,-11885.76,0.00048493,30]
[314499733,1708377115247,-500.0,0.00048493,30]
[314499734,1708377115257,-2710.69,0.00048493,30]
[314499735,1708377115267,-500.0,0.00048493,30]
[314499736,1708377115277,-8772.79,0.00048493,30]
[314499737,1708377115287,-1007.39,0.00048493,30]
[314499738,1708377115296,-500.0,0.00048493,30]
[314499739,1708377115306,-500.0,0.00048493,30]
[314499740,1708377115316,-500.0,0.00048493,30]
[314499741,1708377115325,-877.27,0.00048493,30]
[314499742,1708377115335,-774.82,0.00048493,30]
[314499743,1708377115345,-1539.61,0.00048493,30]
[314499744,1708377115355,-740.11,0.00048493,30]
[314499745,1708377115365,-500.0,0.00048493,30]
[314499746,1708377115376,-530.62,0.00048493,30]
[314499747,1708377115385,-500.0,0.00048493,30]
[314499748,1708377115394,-1422.42,0.00048493,30]
[314499749,1708377115404,-500.0,0.00048493,30]
[314499750,1708377115414,-500.0,0.00048493,30]
[314499751,1708377115424,-2610.19,0.00048493,30]
[314499752,1708377115433,-1255.72,0.00048493,30]
[314499753,1708377115443,-1016.32,0.00048493,30]
[314499754,1708377115453,-500.0,0.00048493,30]
[314499755,1708377115465,-1233.1,0.00048493,30]
[314499756,1708377115475,-5037.62,0.00048493,30]
[314499757,1708377115485,-1545.99,0.00048493,30]
[314499758,1708377115496,-500.0,0.00048493,30]
[314499759,1708377115506,-771.45,0.00048493,30]
[314499760,1708377115516,-500.0,0.00048493,30]
[314499761,1708377115526,-996.35,0.00048493,30]
[314499762,1708377115536,-1249.41,0.00048493,30]
[314499763,1708377115546,-753.57,0.00048493,30]
[314499764,1708377115558,-500.0,0.00048493,30]
[314499765,1708377115568,-500.0,0.00048493,30]
[314499766,1708377115578,-609.95,0.00048493,30]
[314499767,1708377115588,-3806.98,0.00048493,30]
[314499768,1708377115599,-4368.41,0.00048493,30]
[314499769,1708377115609,-500.0,0.00048493,30]
[314499770,1708377115619,-1205.55,0.00048493,30]
[314499771,1708377115629,-500.0,0.00048493,30]
[314499772,1708377115639,-1108.98,0.00048493,30]
[314499773,1708377115649,-500.0,0.00048493,30]
[314499774,1708377115659,-745.48,0.00048493,30]
[314499775,1708377115669,-221.66,0.00048493,30]
[314499776,1708377115679,-500.0,0.00048493,30]
[314499777,1708377115689,-500.0,0.00048493,30]
[314499778,1708377115698,-500.0,0.00048493,30]
[314499779,1708377115708,-542.70690448,0.00048493,30]
[314499780,1708377115718,-761.98,0.00048493,30]
[314499781,1708377115728,-1070.44,0.00048493,30]
[314499782,1708377115738,-2405.19,0.00048493,30]
[314499783,1708377115749,-1483.04,0.00048493,30]
[314499784,1708377115758,-656.25,0.00048493,30]
[314499785,1708377115768,-500.0,0.00048493,30]
[314499786,1708377115778,-4891.81,0.00048493,30]
[314499787,1708377115788,-703.9,0.00048493,30]
[314499788,1708377115798,-500.0,0.00048493,30]
[314499789,1708377115807,-1120.83,0.00048493,30]
[314499790,1708377115818,-500.0,0.00048493,30]
[314499791,1708377115828,-7009.22,0.00048493,30]
[314499792,1708377115838,-5142.29,0.00048493,30]
[314499793,1708377115847,-583.58,0.00048493,30]
[314499794,1708377115857,-581.24,0.00048493,30]
[314499795,1708377115867,-500.0,0.00048493,30]
[314499796,1708377115876,-1149.32,0.00048493,30]
[314499797,1708377115886,-500.0,0.00048493,30]
[314499798,1708377115896,-1818.57,0.00048493,30]
[314499799,1708377115906,-713.94,0.00048493,30]
[314499800,1708377115916,-500.0,0.00048493,30]
[314499801,1708377115926,-2123.12,0.00048493,30]
[314499802,1708377115936,-550.56,0.00048493,30]
[314499803,1708377115946,-820.56,0.00048493,30]
[314499804,1708377115957,-4375.89,0.00048493,30]
[314499805,1708377115967,-500.0,0.00048493,30]
[314499806,1708377115977,-500.0,0.00048493,30]
[314499807,1708377115987,-1000.0,0.00048493,30]
[314499808,1708377115997,-500.0,0.00048493,30]
[314499809,1708377116008,-1716.3,0.00048493,30]
[314499810,1708377116018,-1435.17,0.00048493,30]
[314499811,1708377116029,-1857.4,0.00048493,30]
[314499812,1708377116039,-505.27,0.00048493,2]
[314499813,1708377116049,-1170.62,0.00048493,30]
[314499814,1708377116059,-1644.0,0.00048493,30]
[314499815,1708377116069,-9747.42,0.00048493,30]
[314499816,1708377116079,-500.0,0.00048493,30]
[314499817,1708377116089,-699.58,0.00048493,30]
[314499818,1708377116099,-500.0,0.00048493,30]
[314499819,1708377116109,-1379.02,0.00048493,30]
[314499820,1708377116119,-500.0,0.00048493,30]
[314499821,1708377116129,-504.45,0.00048493,30]
[314499822,1708377116139,-1052.13,0.00048493,30]
[314499823,1708377116149,-500.0,0.00048493,30]
[314499824,1708377116159,-2820.04,0.00048493,30]
[314499825,1708377116169,-1201.01,0.00048493,30]
[314499826,1708377116180,-500.0,0.00048493,30]
[314499827,1708377116190,-1773.34,0.00048493,30]
[314499828,1708377116200,-500.0,0.00048493,30]
[314499829,1708377116209,-2704.66,0.00048493,30]
[314499830,1708377116219,-1527.67,0.00048493,30]
[314499831,1708377116229,-582.39,0.00048493,30]
[314499832,1708377116239,-3977.18,0.00048493,30]
[314499833,1708377116249,-500.0,0.00048493,30]
[314499834,1708377116260,-825.53,0.00048493,30]
[314499835,1708377116269,-898.27,0.00048493,30]
[314499836,1708377116280,-500.0,0.00048493,30]
[314499837,1708377116290,-2898.65,0.00048493,30]
[314499838,1708377116299,-1746.66,0.00048493,30]
[314499839,1708377116309,-2731.53,0.00048493,30]
[314499840,1708377116318,-500.0,0.00048493,30]
[314499841,1708377116328,-968.66,0.00048493,30]
[314499842,1708377116338,-500.0,0.00048493,30]
[314499843,1708377116348,-500.0,0.00048493,30]
[314499844,1708377116357,-857.25,0.00048493,30]
[314499845,1708377116367,-740.69,0.00048493,30]
[314499846,1708377116377,-500.0,0.00048493,30]
[314499847,1708377116387,-1486.37,0.00048493,30]
[314499848,1708377116397,-1149.63,0.00048493,30]
[314499849,1708377116408,-1388.67,0.00048493,30]
[314499850,1708377116420,-1224.19,0.00048493,30]
[314499851,1708377116430,-1243.1,0.00048493,30]
[314499852,1708377116441,-500.0,0.00048493,30]
[314499853,1708377116452,-500.0,0.00048493,30]
[314499854,1708377116473,-1119.06,0.00048493,30]
[314499855,1708377116485,-500.0,0.00048493,30]
[314499856,1708377116497,-500.0,0.00048493,30]
[314499857,1708377116509,-500.0,0.00048493,30]
[314499858,1708377116520,-780.29,0.00048493,30]
[314499859,1708377116532,-995.4,0.00048493,30]
[314499860,1708377116543,-500.0,0.00048493,30]
[314499861,1708377116554,-1750.39,0.00048493,30]
[314499862,1708377116565,-734.28,0.00048493,30]
[314499863,1708377116579,-1107.14,0.00048493,30]
[314499864,1708377116591,-500.0,0.00048493,30]
[314499865,1708377116602,-8099.08,0.00048493,30]
[314499866,1708377116613,-500.0,0.00048493,30]
[314499867,1708377116626,-518.58,0.00048493,30]
[314499868,1708377116637,-575.48,0.00048493,30]
[314499869,1708377116648,-500.0,0.00048493,30]
[314499870,1708377116659,-1648.23,0.00048493,30]
[314499871,1708377116670,-1505.89,0.00048493,30]
[314499872,1708377116681,-824.66,0.00048493,2]
[314499873,1708377116692,-197.0212088,0.00048498,45]
[314499874,1708377116704,-154.0583357,0.00048499,30]
[314499875,1708377116714,-317.0,0.000485,38]
[314499876,1708377116725,-150.06910513,0.00048544,30]
[314499877,1708377116736,-150.0,0.00048574,7]
[314499878,1708377116747,-1448.17252855,0.00048574,5]
[314499879,1708377116758,-150.0,0.00048583,7]
[314499880,1708377116769,-153.28144718,0.00048592,30]
[314499881,1708377116780,-500.0,0.0004862,90]
[314499882,1708377116792,-206.0,0.00048639,34]
[314499883,1708377116803,-150.0,0.00048655,7]
[314499884,1708377116816,-150.0,0.0004866,7]
[314499885,1708377116828,-150.0,0.00048664,7]
[314499886,1708377116840,-150.06910513,0.00048726,30]
[314499887,1708377116851,-162.97294719,0.00048737,30]
[314499888,1708377116863,-150.0,0.00048753,7]
[314499889,1708377116874,-2039.93,0.00048766,30]
[314499890,1708377116885,-1605.07,0.00048766,30]
[314499891,1708377116896,-1090.94,0.00048766,30]
[314499892,1708377116907,-1161.62,0.00048766,30]
[314499893,1708377116917,-4690.89,0.00048766,30]
[314499894,1708377116928,-2224.42,0.00048766,30]
[314499895,1708377116939,-1819.91,0.00048766,30]
[314499896,1708377116950,-809.73,0.00048766,30]
[314499897,1708377116964,-590.34,0.00048766,30]
[314499898,1708377116975,-1319.16,0.00048766,30]
[314499899,1708377116985,-886.59,0.00048766,30]
[314499900,1708377117246,-1287.42,0.00048766,30]
[314499901,1708377117256,-1242.47,0.00048766,30]
[314499902,1708377117267,-924.48,0.00048766,30]
[314499903,1708377117276,-2026.93,0.00048766,30]
[314499904,1708377117286,-1086.95,0.00048766,30]
[314499905,1708377117297,-735.92,0.00048766,30]
[314499906,1708377117306,-878.99,0.00048766,30]
[314499907,1708377117317,-1756.54,0.00048766,30]
[314499908,1708377117329,-898.46,0.00048766,30]